bitfinex/quotes_SOLUSD_20220129
["timestamp","ask_amount","ask_price","bid_price","bid_amount"]
[1643488465760,0.25,96.309,96.28,0.00029512]
[1643488466861,0.25,96.319,96.28,0.00029512]
[1643488467864,0.30710127,96.303,96.28,0.00029512]
[1643488468668,0.3074266,96.322,96.28,0.00029512]
[1643488469063,15.598,96.31,96.28,0.00029512]
[1643488469267,0.25,96.309,96.28,0.00029512]
[1643488469465,0.30763872,96.289,96.28,0.00029512]
[1643488469964,63.30363853,96.281,96.28,0.00029512]
[1643488470365,63.25,96.281,96.28,0.00029512]
[1643488471272,103.47414241,96.28,96.221,0.5491841]
[1643488471468,40.47414241,96.28,96.221,0.82636762]
[1643488471667,6.0,96.27,96.221,0.82636762]
[1643488472069,40.47414241,96.28,96.221,0.82636762]
[1643488472269,0.25,96.269,96.221,0.82636762]
[1643488473273,6.0,96.27,96.221,0.82636762]
[1643488473969,15.595,96.32,96.221,0.82636762]
[1643488474171,22.6295,96.328,96.221,0.82636762]
[1643488474370,0.25,96.319,96.227,2.80303077]
[1643488474595,0.25,96.319,96.224,2.80303077]
[1643488474784,0.25,96.319,96.225,3.05303077]
[1643488474981,22.6295,96.328,96.225,2.80303077]
[1643488474982,32.79624929,96.327,96.225,2.80303077]
[1643488475381,6.0,96.317,96.224,2.80303077]
[1643488475585,6.0,96.317,96.221,0.82636762]
[1643488475586,6.0,96.317,96.296,0.00436704]
[1643488475983,22.6295,96.328,96.296,0.00436704]
[1643488476385,0.25,96.327,96.296,0.00436704]
[1643488476782,22.6295,96.328,96.296,0.00436704]
[1643488478284,0.31470782,96.327,96.296,0.00436704]
[1643488478484,6.0,96.318,96.296,0.00436704]
[1643488478886,0.31247816,96.302,96.296,0.00436704]
[1643488480185,6.0,96.31,96.296,0.00436704]
[1643488480787,15.599,96.3,96.195,4.17503324]
[1643488480986,6.0,96.29,96.195,4.17503324]
[1643488481186,6.0,96.29,96.203,4.17503324]
[1643488481394,0.31931033,96.287,96.193,4.17503324]
[1643488481997,6.0,96.278,96.193,4.17503324]
[1643488482597,0.25,96.277,96.194,0.25]
[1643488482797,37.37457498,96.288,96.204,4.17503324]
[1643488483198,37.37457498,96.288,96.204,3.67503324]
[1643488483601,37.37457498,96.288,96.175,6.0]
[1643488483797,37.37457498,96.288,96.176,6.0]
[1643488484002,37.37457498,96.288,96.176,8.16156388]
[1643488484199,37.37457498,96.288,96.177,2.06156388]
[1643488484699,37.37457498,96.288,96.167,0.1]
[1643488484700,6.0,96.278,96.167,104.8]
[1643488484897,6.0,96.278,96.168,7.2118068]
[1643488485425,37.37457498,96.288,96.169,7.67323055]
[1643488485633,37.37457498,96.288,96.179,6.0]
[1643488485828,37.37457498,96.288,96.179,6.1]
[1643488486028,37.37457498,96.288,96.18,11.61166667]
[1643488486229,37.37457498,96.288,96.181,0.1]
[1643488486433,37.37457498,96.288,96.182,104.7]
[1643488486635,0.25,96.287,96.192,6.0]
[1643488486836,0.25,96.287,96.183,0.1]
[1643488487031,0.25,96.287,96.183,5.71166667]
[1643488487231,0.25,96.287,96.184,13.73745926]
[1643488487431,0.25,96.287,96.185,0.1]
[1643488487832,0.25,96.287,96.186,13.73745926]
[1643488488033,0.25,96.287,96.187,0.1]
[1643488488532,0.25,96.287,96.188,13.73745926]
[1643488488731,0.25,96.287,96.189,0.1]
[1643488489162,0.25,96.287,96.189,13.83745926]
[1643488489336,0.25,96.287,96.19,0.1]
[1643488489735,6.0,96.278,96.19,0.1]
[1643488489936,6.0,96.278,96.143,7.2118068]
[1643488490138,0.25,96.277,96.157,0.25]
[1643488490340,0.25,96.277,96.154,104.7]
[1643488490644,0.25,96.277,96.155,7.2118068]
[1643488490842,0.25,96.277,96.158,2.06156388]
[1643488491040,0.25,96.277,96.156,104.7]
[1643488491244,0.25,96.277,96.157,7.2118068]
[1643488491445,0.25,96.277,96.158,12.65412592]
[1643488491645,0.25,96.277,96.168,110.7]
[1643488491646,6.0,96.27,96.168,110.7]
[1643488491847,37.77126504,96.269,96.169,7.2118068]
[1643488492050,6.0,96.259,96.169,7.2118068]
[1643488492248,0.25,96.258,96.169,7.2118068]
[1643488492549,0.25,96.258,96.17,104.7]
[1643488492748,0.25,96.258,96.171,0.1]
[1643488492952,0.25,96.258,96.171,7.2118068]
[1643488493151,0.25,96.258,96.172,104.7]
[1643488493351,0.25,96.258,96.174,104.7]
[1643488493556,0.25,96.258,96.175,7.2118068]
[1643488494253,0.25,96.258,96.176,119.4156898]
[1643488494452,0.25,96.258,96.177,7.2118068]
[1643488494652,0.25,96.258,96.177,21.9274966]
[1643488494851,0.25,96.258,96.178,0.35]
[1643488495056,0.25,96.258,96.178,12.90412592]
[1643488495252,0.25,96.258,96.18,104.7]
[1643488495451,0.25,96.258,96.181,0.1]
[1643488495655,0.25,96.258,96.181,7.4618068]
[1643488495954,0.25,96.258,96.182,104.7]
[1643488496151,0.25,96.258,96.183,0.1]
[1643488496353,0.25,96.258,96.183,7.2118068]
[1643488496782,0.25,96.268,96.183,7.2118068]
[1643488497175,0.31774536,96.291,96.183,7.2118068]
[1643488497375,51.974,96.36,96.193,6.0]
[1643488497575,51.974,96.36,96.194,6.0]
[1643488497781,51.974,96.36,96.194,36.52746605]
[1643488497981,0.32245528,96.391,96.195,126.68634716]
[1643488498176,44.6090242,96.361,96.197,62.81]
[1643488498375,44.6090242,96.361,96.24,15.58]
[1643488498586,44.6090242,96.361,96.25,6.0]
[1643488498876,23.3346,96.399,96.251,63.06]
[1643488499075,27.12771554,96.421,96.261,68.81]
[1643488499279,70.5371,96.489,96.265,62.81]
[1643488499475,70.5371,96.489,96.271,62.81]
[1643488499675,35.74170045,96.394,96.29,15.571]
[1643488499875,35.74170045,96.394,96.291,104.95]
[1643488500076,35.74170045,96.394,96.292,7.2118068]
[1643488500278,35.74170045,96.394,96.292,19.43285217]
[1643488500476,35.74170045,96.394,96.239,6.508692]
[1643488500477,0.30019251,96.371,96.239,6.508692]
[1643488500676,15.587,96.37,96.209,7.1301391]
[1643488500876,0.30599651,96.346,96.208,31.1063391]
[1643488501077,0.30599651,96.346,96.209,104.7]
[1643488501276,0.31423529,96.321,96.209,104.7]
[1643488502178,6.0,96.335,96.209,104.7]
[1643488502878,6.0,96.335,96.21,0.25]
[1643488503479,6.0,96.335,96.219,6.0]
[1643488503678,6.0,96.335,96.22,12.52]
[1643488503979,6.0,96.335,96.23,6.0]
[1643488504179,6.0,96.399,96.25,15.579]
[1643488504380,6.0,96.399,96.252,104.7]
[1643488504584,6.0,96.399,96.262,6.0]
[1643488504778,6.0,96.399,96.263,0.25]
[1643488504978,33.87059459,96.398,96.27,6.0]
[1643488505378,33.87059459,96.398,96.273,6.0]
[1643488505577,33.87059459,96.398,96.274,6.0]
[1643488505778,33.87059459,96.398,96.275,104.95]
[1643488505981,6.0,96.399,96.275,120.90856938]
[1643488506179,6.0,96.467,96.285,6.0]
[1643488506378,6.0,96.467,96.286,0.25]
[1643488506579,0.30151663,96.448,96.286,47.60051361]
[1643488506779,0.30151663,96.448,96.29,15.571]
[1643488506980,0.30151663,96.448,96.286,32.12541211]
[1643488506981,0.30151663,96.448,96.286,16.16684273]
[1643488507183,6.0,96.44,96.3,6.0]
[1643488507380,6.25,96.439,96.301,0.25]
[1643488507579,6.25,96.439,96.286,16.16684273]
[1643488507781,6.25,96.439,96.287,15.95856938]
[1643488507981,6.25,96.439,96.297,6.0]
[1643488508282,6.25,96.439,96.298,104.95]
[1643488508481,6.25,96.439,96.298,104.7]
[1643488508682,6.25,96.439,96.282,15.4751015]
[1643488508683,0.31179942,96.392,96.282,15.4751015]
[1643488508883,0.31179942,96.392,96.276,23.3378]
[1643488509084,0.305443,96.371,96.276,23.3378]
[1643488509281,0.25,96.39,96.276,23.3378]
[1643488509483,6.0,96.381,96.276,23.3378]
[1643488509685,6.0,96.381,96.277,15.95856938]
[1643488509882,6.0,96.381,96.277,28.19548563]
[1643488510082,6.0,96.409,96.287,6.0]
[1643488510299,6.0,96.409,96.288,0.25]
[1643488510486,6.0,96.409,96.288,6.25]
[1643488510684,39.13253598,96.408,96.288,6.25]
[1643488510987,6.0,96.398,96.288,6.25]
[1643488511187,6.0,96.398,96.288,0.25]
[1643488511388,0.30041929,96.391,96.276,23.3378]
[1643488511584,0.30041929,96.391,96.267,104.7]
[1643488512688,0.30041929,96.391,96.268,0.25]
[1643488513085,33.80948544,96.389,96.268,0.25]
[1643488513286,0.25,96.388,96.268,0.25]
[1643488513487,6.0,96.379,96.268,0.25]
[1643488513886,0.25,96.378,96.23,104.95]
[1643488514286,0.25,96.378,96.231,31.43367088]
[1643488514692,0.25,96.378,96.232,136.38367088]
[1643488514987,0.25,96.378,96.233,0.25]
[1643488515420,35.01990752,96.369,96.233,0.25]
[1643488515586,6.0,96.359,96.234,15.95856938]
[1643488515789,0.25,96.358,96.235,0.25]
[1643488515987,0.25,96.358,96.235,104.7]
[1643488516190,0.31011121,96.336,96.214,15.95856938]
[1643488516388,0.31011121,96.336,96.199,9.91684273]
[1643488516588,0.31011121,96.336,96.215,4.29745613]
[1643488516988,0.31011121,96.336,96.211,4.29745613]
[1643488517191,0.31011121,96.336,96.216,4.29745613]
[1643488517392,0.31011121,96.336,96.217,0.25]
[1643488517588,0.25,96.358,96.21,104.7]
[1643488517589,0.25,96.358,96.218,4.29745613]
[1643488517791,0.31844451,96.329,96.211,4.29745613]
[1643488517988,0.31844451,96.329,96.21,104.7]
[1643488518190,33.359897,96.329,96.21,104.7]
[1643488518390,6.0,96.32,96.21,104.7]
[1643488518589,6.0,96.314,96.21,104.7]
[1643488518790,33.01347232,96.313,96.21,104.7]
[1643488518991,6.0,96.303,96.21,104.7]
[1643488519393,0.25,96.302,96.21,104.7]
[1643488520394,0.25,96.302,96.198,112.9]
[1643488520598,0.31296502,96.279,96.198,112.9]
[1643488521494,15.598,96.3,96.199,104.7]
[1643488521695,6.0,96.303,96.199,104.7]
[1643488521897,6.0,96.29,96.199,104.7]
[1643488522096,6.0,96.288,96.2,0.25]
[1643488522931,6.0,96.288,96.199,104.7]
[1643488523099,0.25,96.287,96.199,104.7]
[1643488523897,0.25,96.287,96.199,104.2]
[1643488525503,40.25337084,96.279,96.199,104.2]
[1643488525902,6.0,96.269,96.199,104.2]
[1643488526303,0.25,96.268,96.182,0.1]
[1643488526502,0.25,96.268,96.131,112.9]
[1643488526503,0.25,96.268,96.178,0.1]
[1643488526708,0.25,96.268,96.152,0.1]
[1643488526904,0.25,96.268,96.152,0.25]
[1643488527107,0.25,96.268,96.153,4.30322103]
[1643488527305,0.25,96.268,96.154,0.25]
[1643488527509,39.43757601,96.264,96.154,0.25]
[1643488527710,0.25,96.268,96.155,4.30322103]
[1643488527909,0.25,96.263,96.174,112.9]
[1643488528106,0.25,96.268,96.175,0.1]
[1643488528306,0.25,96.268,96.175,0.35]
[1643488528506,0.25,96.268,96.175,105.05]
[1643488528706,39.88053735,96.289,96.176,0.1]
[1643488528908,39.88053735,96.289,96.176,0.35]
[1643488529109,6.0,96.279,96.176,0.35]
[1643488529511,6.0,96.279,96.176,0.1]
[1643488529712,6.0,96.279,96.149,4.29685725]
[1643488529713,0.3088457,96.239,96.149,4.29685725]
[1643488529909,0.3088457,96.239,96.148,0.08956394]
[1643488531533,0.25,96.254,96.148,0.08956394]
[1643488531932,38.14066517,96.249,96.148,0.08956394]
[1643488532233,6.0,96.239,96.148,0.08956394]
[1643488532634,0.25,96.238,96.148,0.08956394]
[1643488533332,11.65,96.238,96.148,0.08956394]
[1643488533534,6.0,96.228,96.148,0.08956394]
[1643488533734,33.25970533,96.227,96.148,0.08956394]
[1643488534036,6.0,96.217,96.148,0.08956394]
[1643488534435,0.25,96.216,96.148,0.08956394]
[1643488534936,0.32405868,96.253,96.148,0.08956394]
[1643488535139,15.598,96.32,96.149,2.07858945]
[1643488535340,0.25,96.275,96.149,2.07858945]
[1643488535535,0.25,96.275,96.149,17.51035762]
[1643488535735,0.25,96.275,96.15,0.1]
[1643488535936,0.25,96.275,96.15,104.8]
[1643488536136,0.25,96.275,96.17,112.9]
[1643488536338,6.0,96.274,96.171,0.1]
[1643488536740,0.25,96.273,96.171,0.1]
[1643488537139,6.0,96.274,96.171,0.1]
[1643488538539,36.83281084,96.269,96.171,0.1]
[1643488538944,6.0,96.259,96.171,0.1]
[1643488539142,0.25,96.258,96.171,0.1]
[1643488539441,0.3057792,96.239,96.171,0.1]
[1643488539642,0.3057792,96.239,96.151,0.1]
[1643488540246,0.25,96.258,96.156,1.40878094]
[1643488540448,0.25,96.258,96.16,1.40878094]
[1643488540844,0.25,96.258,96.167,1.40878094]
[1643488541045,37.56437776,96.249,96.167,1.40878094]
[1643488541244,0.25,96.248,96.165,1.40878094]
[1643488541543,0.25,96.248,96.151,0.1]
[1643488541544,6.0,96.239,96.166,1.40878094]
[1643488541745,0.25,96.238,96.166,1.40878094]
[1643488541944,0.25,96.238,96.169,1.40878094]
[1643488542145,0.25,96.238,96.17,1.40878094]
[1643488542347,0.25,96.238,96.168,1.40878094]
[1643488542546,0.25,96.238,96.165,1.40878094]
[1643488542947,0.25,96.238,96.151,0.1]
[1643488542948,0.25,96.238,96.163,1.40878094]
[1643488543145,0.25,96.238,96.159,1.40878094]
[1643488543347,63.0,96.237,96.148,0.08956394]
[1643488543545,0.32242279,96.214,96.148,0.08956394]
[1643488543748,39.02608461,96.213,96.148,0.08956394]
[1643488544144,6.0,96.203,96.148,0.08956394]
[1643488544348,0.25,96.202,96.148,0.08956394]
[1643488544744,0.25,96.202,96.148,0.00956394]
[1643488545547,39.02608461,96.213,96.148,0.00956394]
[1643488545743,0.25,96.311,96.148,0.00956394]
[1643488545744,0.25,96.212,96.148,0.00956394]
[1643488545943,46.4372,96.258,96.148,0.00956394]
[1643488546144,6.0,96.248,96.148,2.09665825]
[1643488546345,6.0,96.248,96.149,4.55115472]
[1643488546546,6.0,96.248,96.15,4.30115472]
[1643488546749,39.77408641,96.247,96.15,4.30115472]
[1643488546951,39.77408641,96.247,96.151,0.25]
[1643488547150,6.0,96.237,96.152,4.30115472]
[1643488547347,6.0,96.237,96.153,0.25]
[1643488547750,6.0,96.237,96.154,4.30115472]
[1643488547951,39.77408641,96.247,96.154,4.30115472]
[1643488548154,39.77408641,96.247,96.148,0.00956394]
[1643488548550,0.25,96.246,96.148,0.00956394]
[1643488548951,0.31499323,96.243,96.148,0.00956394]
[1643488549368,6.0,96.237,96.148,0.00956394]
[1643488549753,0.25,96.236,96.148,0.00956394]
[1643488550050,33.58124464,96.188,96.148,0.00956394]
[1643488550250,0.25,96.187,96.148,0.00956394]
[1643488550451,6.0,96.178,96.148,0.00956394]
[1643488550653,23.0973,96.258,96.148,0.00956394]
[1643488550850,0.25,96.25,96.148,0.00956394]
[1643488551054,6.0,96.241,96.148,0.00956394]
[1643488551353,0.25,96.24,96.148,0.00956394]
[1643488551551,42.66052884,96.24,96.148,0.00956394]
[1643488551952,6.0,96.23,96.148,0.00956394]
[1643488552353,6.0,96.23,96.149,2.08735018]
[1643488552555,42.41052884,96.24,96.15,4.30115472]
[1643488552752,42.41052884,96.24,96.159,6.0]
[1643488552951,0.30795763,96.32,96.16,10.30115472]
[1643488553162,0.30795763,96.32,96.16,12.3885049]
[1643488553353,0.30795763,96.32,96.161,10.55115472]
[1643488553552,0.30795763,96.32,96.161,12.6385049]
[1643488553755,0.30795763,96.32,96.162,2.08735018]
[1643488553956,0.30438927,96.262,96.162,6.3885049]
[1643488554154,0.30438927,96.262,96.162,4.30115472]
[1643488554354,0.30438927,96.262,96.163,4.30115472]
[1643488554655,0.30438927,96.262,96.15,0.02289048]
[1643488554854,0.25,96.263,96.15,0.02289048]
[1643488555057,33.54591296,96.256,96.15,0.02289048]
[1643488555253,0.25,96.255,96.15,0.02289048]
[1643488555457,6.0,96.246,96.15,0.02289048]
[1643488555855,0.25,96.245,96.15,0.02289048]
[1643488556055,33.54591296,96.256,96.15,0.02289048]
[1643488556257,33.54591296,96.256,96.152,6.0]
[1643488556458,33.54591296,96.256,96.156,6.0]
[1643488556682,33.54591296,96.256,96.161,6.0]
[1643488556857,33.54591296,96.256,96.153,19.71189612]
[1643488556858,33.54591296,96.256,96.163,6.0]
[1643488557057,33.54591296,96.256,96.164,4.30115472]
[1643488557260,0.25,96.255,96.155,4.30115472]
[1643488557457,6.0,96.246,96.155,4.30115472]
[1643488558460,6.0,96.246,96.152,0.02288284]
[1643488558867,0.25,96.245,96.152,0.02288284]
[1643488560265,0.25,96.245,96.155,6.0]
[1643488560472,0.25,96.245,96.152,0.02288284]
[1643488560773,0.25,96.245,96.156,4.30115472]
[1643488560967,0.25,96.245,96.155,6.0]
[1643488561268,0.25,96.245,96.156,4.30115472]
[1643488561470,6.0,96.246,96.156,4.30115472]
[1643488561670,33.54591296,96.256,96.157,0.25]
[1643488561869,33.54591296,96.256,96.158,109.00115472]
[1643488562071,33.54591296,96.256,96.159,4.30115472]
[1643488562270,33.54591296,96.256,96.159,4.55115472]
[1643488562572,33.54591296,96.256,96.16,23.76305084]
[1643488562769,0.25,96.255,96.161,4.30115472]
[1643488562971,0.25,96.255,96.161,24.01305084]
[1643488563175,51.981,96.36,96.171,6.0]
[1643488563375,149.10176572,96.344,96.181,62.81]
[1643488563571,149.10176572,96.344,96.192,62.81]
[1643488563772,40.76244286,96.343,96.221,62.81]
[1643488563972,40.76244286,96.343,96.23,12.52]
[1643488564190,40.76244286,96.343,96.231,10.30115472]
[1643488564394,40.76244286,96.343,96.24,6.0]
[1643488564595,40.76244286,96.343,96.241,6.0]
[1643488564793,40.76244286,96.343,96.242,4.30115472]
[1643488564996,40.76244286,96.343,96.193,4.24061577]
[1643488564997,6.0,96.333,96.193,4.24061577]
[1643488565594,6.0,96.332,96.208,2.84152688]
[1643488566097,0.30552797,96.313,96.196,2.84152688]
[1643488566294,0.30552797,96.313,96.193,2.84152688]
[1643488566496,1.05552797,96.313,96.193,2.84152688]
[1643488566698,6.0,96.303,96.193,2.84152688]
[1643488567096,34.44229512,96.312,96.194,2.33735018]
[1643488567296,34.44229512,96.312,96.223,2.84152688]
[1643488567699,34.44229512,96.312,96.213,2.84152688]
[1643488567899,34.44229512,96.312,96.205,4.71064058]
[1643488567900,6.0,96.302,96.204,107.54152688]
[1643488568098,6.0,96.302,96.224,2.08735018]
[1643488568298,34.44229512,96.312,96.234,6.0]
[1643488568499,34.44229512,96.312,96.235,6.0]
[1643488568703,34.44229512,96.312,96.235,25.27814178]
[1643488568898,0.25,96.311,96.236,104.95]
[1643488569099,34.44229512,96.312,96.246,6.0]
[1643488569298,0.25,96.311,96.237,2.08735018]
[1643488569499,0.25,96.311,96.22,2.08735018]
[1643488569698,6.0,96.302,96.22,2.08735018]
[1643488569899,0.25,96.301,96.207,2.84152688]
[1643488570099,0.25,96.301,96.197,2.84152688]
[1643488570398,0.25,96.301,96.199,2.84152688]
[1643488570599,0.25,96.301,96.209,6.0]
[1643488570802,0.25,96.301,96.21,0.25]
[1643488570999,0.25,96.311,96.215,6.0]
[1643488571202,0.25,96.311,96.216,104.7]
[1643488571401,0.25,96.311,96.22,6.0]
[1643488571597,0.25,96.311,96.227,6.0]
[1643488571797,0.25,96.311,96.228,104.7]
[1643488572198,0.25,96.311,96.229,0.25]
[1643488572699,0.25,96.311,96.23,2.08735018]
[1643488572901,34.44229512,96.312,96.231,0.25]
[1643488573300,34.44229512,96.312,96.232,2.08735018]
[1643488573705,34.44229512,96.312,96.232,16.9407916]
[1643488573902,34.44229512,96.312,96.228,104.7]
[1643488574300,6.0,96.302,96.211,0.02265766]
[1643488574703,0.25,96.301,96.211,0.02265766]
[1643488575800,0.25,96.301,96.212,2.08735018]
[1643488576202,0.25,96.301,96.211,0.02265766]
[1643488577405,0.25,96.301,96.197,0.27265003]
[1643488577806,0.25,96.301,96.198,2.08735018]
[1643488578206,0.25,96.301,96.199,0.25]
[1643488579206,0.25,96.301,96.2,2.08735018]
[1643488579805,6.0,96.302,96.2,2.08735018]
[1643488580007,6.0,96.302,96.201,4.70041045]
[1643488581208,0.25,96.301,96.201,4.70041045]
[1643488581409,0.25,96.301,96.198,2.84152688]
[1643488581610,0.25,96.301,96.202,4.70041045]
[1643488581808,0.25,96.301,96.203,0.25]
[1643488582010,0.25,96.301,96.204,4.70041045]
[1643488582309,0.25,96.301,96.205,4.95041045]
[1643488582511,48.3131,96.346,96.205,4.95041045]
[1643488582811,23.6281,96.369,96.206,21.64120205]
[1643488583011,141.95631252,96.382,96.223,2.84152688]
[1643488583212,141.95631252,96.382,96.233,2.84152688]
[1643488583416,141.95631252,96.382,96.224,48.4385]
[1643488583417,141.95631252,96.382,96.241,2.84152688]
[1643488583613,34.11712027,96.381,96.267,2.84152688]
[1643488583814,34.11712027,96.381,96.269,2.84152688]
[1643488584015,34.11712027,96.381,96.281,104.7]
[1643488584414,34.11712027,96.381,96.291,6.0]
[1643488584614,34.11712027,96.381,96.282,63.06]
[1643488584615,141.95631252,96.382,96.292,6.0]
[1643488584815,141.95631252,96.382,96.293,0.25]
[1643488585015,141.95631252,96.382,96.301,104.7]
[1643488585214,141.95631252,96.382,96.302,6.0]
[1643488585420,2.88374113,96.488,96.294,2.08735018]
[1643488585421,2.88374113,96.486,96.294,2.08735018]
[1643488585614,45.90500081,96.371,96.271,17.2751325]
[1643488585815,45.90500081,96.371,96.229,2.84152688]
[1643488586015,6.0,96.361,96.225,4.68079797]
[1643488586315,6.0,96.361,96.225,109.38079797]
[1643488586515,45.90500081,96.371,96.226,17.2751325]
[1643488586714,0.25,96.36,96.231,104.7]
[1643488586917,0.25,96.37,96.237,104.7]
[1643488587115,6.0,96.361,96.237,104.7]
[1643488587317,0.25,96.36,96.237,104.7]
[1643488587918,0.25,96.36,96.238,0.25]
[1643488591421,6.0,96.361,96.238,0.25]
[1643488591620,45.90500081,96.371,96.239,2.09613172]
[1643488591819,45.90500081,96.371,96.25,12.52]
[1643488592025,45.90500081,96.371,96.26,6.0]
[1643488592222,6.0,96.361,96.254,104.7]
[1643488592818,0.25,96.36,96.254,104.7]
[1643488593026,45.90500081,96.371,96.255,16.39481661]
[1643488593027,42.57417793,96.35,96.255,16.39481661]
[1643488593230,23.9686,96.401,96.265,6.0]
[1643488593429,24.6409,96.419,96.268,2.84152688]
[1643488593627,24.6409,96.419,96.266,109.40490429]
[1643488593628,0.25,96.4,96.278,6.0]
[1643488593826,0.25,96.4,96.271,2.84152688]
[1643488593827,0.25,96.4,96.279,0.25]
[1643488594025,0.25,96.4,96.281,6.0]
[1643488594432,33.97989239,96.401,96.282,0.25]
[1643488594630,0.25,96.4,96.29,6.0]
[1643488595029,0.25,96.4,96.293,6.0]
[1643488595429,0.25,96.4,96.294,104.7]
[1643488595631,0.25,96.4,96.304,6.0]
[1643488596332,6.0,96.391,96.279,6.0]
[1643488596530,6.0,96.389,96.258,2.84152688]
[1643488596829,6.0,96.389,96.231,4.24061577]
[1643488596830,0.25,96.388,96.251,2.84152688]
[1643488597032,0.25,96.388,96.252,2.84152688]
[1643488597431,0.25,96.388,96.279,6.0]
[1643488597730,0.25,96.388,96.281,104.7]
[1643488598152,0.25,96.4,96.291,6.0]
[1643488598354,0.25,96.4,96.292,0.25]
[1643488598754,33.72989239,96.401,96.292,0.25]
[1643488599154,33.72989239,96.401,96.291,6.0]
[1643488599354,6.0,96.391,96.263,2.84152688]
[1643488599553,6.0,96.391,96.253,2.09613172]
[1643488599758,6.0,96.391,96.253,109.6376586]
[1643488600058,6.0,96.391,96.267,2.84152688]
[1643488600256,0.25,96.39,96.277,6.0]
[1643488600454,176.90595461,96.418,96.279,62.81]
[1643488600654,176.90595461,96.418,96.283,2.84152688]
[1643488600855,176.90595461,96.418,96.295,2.84152688]
[1643488601157,49.2502,96.473,96.305,6.0]
[1643488601354,33.16405283,96.457,96.306,0.25]
[1643488601555,6.0,96.447,96.306,141.76994911]
[1643488601855,33.16405283,96.457,96.308,62.81]
[1643488602054,33.16405283,96.457,96.318,6.0]
[1643488602254,33.16405283,96.457,96.319,0.25]
[1643488602457,33.16405283,96.457,96.321,104.7]
[1643488602855,33.16405283,96.457,96.331,6.0]
[1643488603054,6.0,96.447,96.331,6.0]
[1643488603257,0.25,96.446,96.332,0.25]
[1643488603457,0.25,96.446,96.332,6.25]
[1643488603657,6.25,96.446,96.332,0.25]
[1643488603857,6.25,96.446,96.342,6.0]
[1643488604055,6.25,96.446,96.344,104.7]
[1643488604255,0.25,96.446,96.344,104.7]
[1643488604457,0.25,96.446,96.354,6.0]
[1643488604958,0.25,96.446,96.344,104.7]
[1643488605157,0.25,96.446,96.354,6.0]
[1643488605357,5.75,96.447,96.355,2.34006265]
[1643488605759,5.75,96.447,96.355,0.25]
[1643488605963,5.75,96.447,96.354,6.0]
[1643488606160,5.75,96.447,96.355,0.25]
[1643488606363,5.75,96.447,96.355,104.95]
[1643488606962,5.75,96.447,96.365,6.0]
[1643488607162,5.75,96.447,96.366,104.7]
[1643488607363,5.75,96.447,96.366,104.95]
[1643488607565,5.75,96.447,96.376,6.0]
[1643488608362,5.75,96.447,96.377,104.7]
[1643488608567,5.75,96.447,96.377,106.79006265]
[1643488608763,33.16405283,96.457,96.377,106.79006265]
[1643488608964,0.25,96.446,96.377,104.7]
[1643488609364,33.16405283,96.457,96.378,0.25]
[1643488609775,0.25,96.456,96.377,104.7]
[1643488609965,49.0426,96.495,96.377,104.7]
[1643488610170,49.0426,96.495,96.379,2.09006265]
[1643488610366,6.0,96.485,96.38,0.25]
[1643488610568,6.0,96.485,96.389,6.0]
[1643488610765,6.0,96.485,96.39,104.95]
[1643488610967,6.0,96.485,96.39,120.76501822]